Cogmind - Beta 10.2 --- EXPLORER MODE // 2020.11.13 @ 13:32:40 // Halloween2020/ForbiddenLore Player: 1Q84 Result: Destroyed by Y-54 Guardian with Flak Gun Performance ------------- Evolutions (3) 1500 Regions Visited (12) 2400 Robots Destroyed (90) 450 Value Destroyed (3339) 3339 Prototype IDs (27) 540 Alien Tech Used (0) 0 Bonus (1106) 1106 TOTAL SCORE: 9335 Bonus ------- High Alert Combat Kills 217 Follower Combat Kills 691 Entered Garrisons 200 Used RIF Installer 500 Aligned with FarCom 300 Friendly Fire -802 Cogmind --------- Core Integrity 0/700 Matter 111/300 Energy 84/100 System Corruption 1% Temperature Cool (947) Movement Core (600) Ox11 Location -7/Storage Parts ------- > --- POWER (1) -------- (None) > --- PROPULSION (4) --- (None) > --- UTILITY (6) ------ Large Storage Unit Large Storage Unit Power Shielding Improved Power Shielding > --- WEAPON (3) ------- (None) > --- INVENTORY (16) --- Micro Nuclear Core Improved Titanium Leg Xenon Bombardment Thruster Medium Storage Unit Relay Coupler [NC] (32) Relay Coupler [Grunt] (41) Relay Coupler [Hunter] (19) Heavy Particle Cannon Improved Datajack Scythe Spear Peak State ------------ > --- POWER ------------ Light Nuclear Core > --- PROPULSION ------- Advanced Treads Advanced Treads Heavy Treads > --- UTILITY ---------- Large Storage Unit Large Storage Unit Kinecellerator Power Shielding Improved Power Shielding Medium Reactive Plating > --- WEAPON ----------- AWS/Autocannon > --- INVENTORY -------- Micro Nuclear Core Improved Titanium Leg Xenon Bombardment Thruster Medium Storage Unit Kinecellerator Relay Coupler [NC] Relay Coupler [Grunt] Relay Coupler [Hunter] EM Pulse Gun Heavy Particle Cannon Heavy Particle Cannon Heavy Particle Cannon Rocket Launcher Heavy Rocket Launcher Scythe Spear [Rating: 69] Favorites ----------- Power Light Nuclear Core Engine Light Ion Engine Power Core Light Nuclear Core Propulsion Aluminum Leg Treads Advanced Treads Leg Aluminum Leg Utility Large Storage Unit Device Kinecellerator Storage Large Storage Unit Protection Power Shielding Weapon Advanced Beam Cannon Energy Gun Improved Medium Laser Energy Cannon Advanced Beam Cannon Ballistic Gun Assault Rifle Ballistic Cannon AWS/Autocannon Launcher Rocket Launcher Special Melee Weapon Improved Datajack Build | -11 -10 -10 -9 -9 -9 -8 -8 -8 -7 -7 -7 -7 ------- Run | Scr Mat Min Mat Min Exi Min Mat Gar Fac Was Fac Sto Slots Evolved 7 | . 1 . 2 . . . 2 . 2 . . . Power . | . . . . . . . . . . . . . Propulsion 2 | . . . . . . . 1 . 1 . . . Utility 4 | . 1 . 2 . . . . . 1 . . . Weapon 1 | . . . . . . . 1 . . . . . Parts Attached 52 | 5 1 . 7 5 1 . 5 8 8 3 3 6 Power 6 | 1 . . . 1 . . 1 1 . . 2 . Engine 4 | 1 . . . 1 . . 1 . . . 1 . Core 2 | . . . . . . . . 1 . . 1 . Reactor . | . . . . . . . . . . . . . Propulsion 13 | 2 . . . 1 . . 2 . 5 3 . . Treads 5 | . . . . . . . . . 2 3 . . Leg 8 | 2 . . . 1 . . 2 . 3 . . . Wheel . | . . . . . . . . . . . . . Hover . | . . . . . . . . . . . . . Flight . | . . . . . . . . . . . . . Utility 13 | 1 . . 4 1 1 . 1 2 2 . . 1 Device 3 | . . . 1 . . . 1 . . . . 1 Storage 4 | 1 . . . . 1 . . 2 . . . . Processor . | . . . . . . . . . . . . . Hackware . | . . . . . . . . . . . . . Protection 6 | . . . 3 1 . . . . 2 . . . Artifact . | . . . . . . . . . . . . . Weapon 20 | 1 1 . 3 2 . . 1 5 1 . 1 5 Energy Gun 4 | . . . . 1 . . . 2 . . . 1 Energy Cannon 5 | . . . 2 . . . . 1 . . . 2 Ballistic Gun 2 | 1 1 . . . . . . . . . . . Ballistic Cannon 4 | . . . . . . . 1 2 1 . . . Launcher 4 | . . . 1 1 . . . . . . . 2 Special Weapon . | . . . . . . . . . . . . . Impact Weapon . | . . . . . . . . . . . . . Slashing Weapon . | . . . . . . . . . . . . . Piercing Weapon . | . . . . . . . . . . . . . Special Melee Weapon 1 | . . . . . . . . . . . 1 . Unidentified Prototypes 4 | . . . 2 1 . . . . . . 1 . Parts Lost 15 | . . . 3 1 . . . . . . . 11 Power 1 | . . . . . . . . . . . . 1 Propulsion 3 | . . . . 1 . . . . . . . 2 Utility 5 | . . . 2 . . . . . . . . 3 Weapon 6 | . . . 1 . . . . . . . . 5 Highest Loss Streak 10 | . . . 2 1 . . . . . . . 10 Average Slot Usage (%) 80 | . 62 75 84 76 81 80 83 82 84 82 77 83 Engine 5 | . 12 12 10 10 10 10 8 . . . . . Core 3 | . . . . . . . . 7 7 7 7 7 Treads 4 | . . . . . . . . . 3 18 21 18 Leg 17 | . 25 25 20 16 20 10 22 25 24 6 . . Device 4 | . . . 7 . . . 4 8 7 7 7 4 Storage 13 | . 12 12 10 10 11 20 16 16 14 14 14 14 Protection 16 | . . . 17 20 20 20 16 16 20 21 21 20 Energy Cannon 4 | . . . 6 10 10 10 6 1 2 . . 5 Ballistic Gun 3 | . 12 25 3 . . . . . . . . . Ballistic Cannon 2 | . . . . . . . 1 5 4 7 5 . Launcher 3 | . . . 8 5 10 10 6 . . . . 2 Naked Turns . | . . . . . . . . . . . . . Heaviest Build 127 | 15 16 16 28 22 38 38 96 104 124 124 127 79 Greatest Support 114 | 20 20 20 20 13 13 13 45 45 72 114 114 114 Greatest Overweight (x) 12 | 4 . . 2 7 2 2 2 2 5 2 1 12 Average Overweight (x) 1 | 1 . . 1 2 1 2 . 1 1 1 . . Largest Inventory Capacity 16 | 8 8 8 8 8 14 14 14 16 16 16 16 16 Average Capacity 12 | 7 8 8 8 8 8 14 14 14 16 16 16 16 Most Carried 16 | 4 4 6 8 8 9 9 14 14 16 16 16 16 Average Carried 10 | 2 3 5 6 7 7 9 10 11 15 16 16 14 Final Capacity 16 | 8 8 8 8 8 14 14 14 16 16 16 16 16 Final Carried 16 | 4 3 6 8 7 9 9 11 14 16 16 16 11 Class Distribution -------------------- 64% | Hacker-Mutant 21% | Hacker-Tank 13% | Hacker-Skirmisher Dominant Class ---------------- Hacker-Mutant | -10/Materials Hacker-Mutant | -10/Mines Hacker-Mutant | -9/Materials Hacker-Mutant | -9/Mines Hacker-Mutant | -9/Exiles Hacker-Mutant | -8/Mines Hacker-Mutant | -8/Materials Hacker-Skirmisher | -8/Garrison Hacker-Tank | -7/Factory Hacker-Tank | -7/Waste Hacker-Tank | -7/Factory Hacker-Mutant | -7/Storage Resources | -11 -10 -10 -9 -9 -9 -8 -8 -8 -7 -7 -7 -7 ----------- Run | Scr Mat Min Mat Min Exi Min Mat Gar Fac Was Fac Sto Matter Collected 995 | 186 . 78 282 132 . 21 23 101 . 116 27 29 Remotely . | . . . . . . . . . . . . . Salvage Created 2324 | . 16 . 909 37 . 8 69 516 146 58 156 409 Parts 146 | . 1 . 61 2 . 2 3 34 10 3 11 19 Haulers Intercepted 1 | . . . 1 . . . . . . . . . Recyclers Shooed 2 | . . . 1 . . . . . . . 1 . Parts Field Recycled . | . . . . . . . . . . . . . Retrieved Matter . | . . . . . . . . . . . . . Parts Self-Destructed . | . . . . . . . . . . . . . Prevented . | . . . . . . . . . . . . . Kills | -11 -10 -10 -9 -9 -9 -8 -8 -8 -7 -7 -7 -7 ------- Run | Scr Mat Min Mat Min Exi Min Mat Gar Fac Was Fac Sto Combat Hostiles Destroyed 77 | . 1 . 21 10 . 1 2 26 3 . 3 10 Guns 4 | . 1 . 1 . . . . . . . . 2 Cannons 50 | . . . 9 2 . . 2 26 3 . 3 5 AOE 23 | . . . 11 8 . 1 . . . . . 3 Classes Destroyed 14 | . 1 . 7 1 . . 1 1 2 . . 1 Worker 6 | . . . 2 . . . . . . . 1 3 Hauler 1 | . . . 1 . . . . . . . . . Recycler 2 | . . . 2 . . . . . . . . . Mechanic 1 | . . . 1 . . . . . . . . . Operator 2 | . . . . . . . . . 2 . . . Watcher 6 | . . . 2 . . . 1 . 1 . 2 . Swarmer 22 | . 1 . 5 2 . 1 . 12 . . 1 . Grunt 23 | . . . 9 . . . 1 6 . . 1 6 Brawler 3 | . . . . . . . . 3 . . . . Duelist 2 | . . . . . . . 1 1 . . . . Sentry 17 | . . . 7 . . . . 5 2 . 1 2 Hunter 1 | . . . . . . . . . . . . 1 Programmer 2 | . . . . . . . . . 1 . . 1 Assembled 8 | . . . . 8 . . . . . . . . Wasp 1 | . . . . . . . . . . 1 . . Butcher 1 | . . . . . . . . . . 1 . . Best Kill Streak 13 | . 1 . 6 7 . 1 3 13 2 . 2 5 Combat Bots Only 13 | . 1 . 3 7 . 1 2 13 1 . 2 4 Max Kills in Single Turn 5 | . 1 . 2 5 . 1 1 1 1 1 1 2 Gunslinging . | . . . . . . . . . . . . . Exploded 5 | . . . 2 5 . 1 . . . . . 1 Melee . | . . . . . . . . . . . . . Uniques/NPCs Destroyed . | . . . . . . . . . . . . . Combat | -11 -10 -10 -9 -9 -9 -8 -8 -8 -7 -7 -7 -7 -------- Run | Scr Mat Min Mat Min Exi Min Mat Gar Fac Was Fac Sto Damage Taken 3205 | . 5 . 520 167 . 19 . 229 312 27 14 1912 Core 848 | . . . 80 28 . . . 37 37 . 1 665 Absorbed by Shields 20 | . . . . . . . . 20 . . . . Core Remaining (%) 91 | 100 . 100 . . . 73 . 93 . . . . Volleys Fired 92 | . 1 . 47 12 . 1 . 3 3 . . 25 Largest 3 | . 2 . 2 2 . 2 . 1 1 . . 3 Hottest 154 | . 40 . 108 124 . 101 . 68 68 . . 154 Shots Fired 290 | . 2 . 70 24 . 2 6 67 18 25 14 62 Gun 46 | . 2 . 13 5 . . . 2 . . . 24 Cannon 205 | . . . 39 12 . 1 6 65 18 25 14 25 Launcher 39 | . . . 18 7 . 1 . . . . . 13 Special . | . . . . . . . . . . . . . Kinetic 139 | . 2 . 13 . . . 6 64 15 25 14 . Thermal 86 | . . . 39 17 . 1 . 1 3 . . 25 Explosive 39 | . . . 18 7 . 1 . . . . . 13 Electromagnetic 26 | . . . . . . . . 2 . . . 24 Robot Hit Streak 36 | . 1 . 18 6 . 8 14 23 15 20 27 36 Robot Miss Streak 2 | . . . 1 2 . . . 1 1 1 1 2 Penetration Max . | . . . . . . . . . . . . . Secondary Targets . | . . . . . . . . . . . . . Autonomous 125 | . . . . . . . 6 64 15 25 15 . Shots Hit Robots 227 | . 1 . 48 11 . 2 6 58 16 24 13 48 Core Hits 136 | . 1 . 39 13 . 1 3 26 6 2 4 41 Critical Hits 7 | . . . 1 1 . . . . 1 4 . . Critical Kills 2 | . . . . 1 . . . . . 1 . . Critical Parts Destroyed 2 | . . . 1 . . . . . 1 . . . Melee Attacks 2 | . . . . . . . . . . . . 2 Impact . | . . . . . . . . . . . . . Slashing . | . . . . . . . . . . . . . Piercing . | . . . . . . . . . . . . . Sneak Attacks 2 | . . . . . . . . . . . . 2 Combat Hostiles . | . . . . . . . . . . . . . Follow-up Attacks . | . . . . . . . . . . . . . Damage Inflicted 13505 | . 10 . 1734 626 . 81 470 4860 1283 2121 690 1630 Guns 406 | . 10 . 129 33 . . . . . . . 234 Cannons 10699 | . . . 754 83 . 21 470 4860 1283 2121 676 431 Explosions 2386 | . . . 851 510 . 60 . . . . . 965 Melee . | . . . . . . . . . . . . . Ramming 14 | . . . . . . . . . . . 14 . Kinetic 9529 | . 10 . 129 . . . 470 4860 1263 2121 676 . Thermal 1342 | . . . 754 116 . 21 . . 20 . . 431 Explosive 2386 | . . . 851 510 . 60 . . . . . 965 Electromagnetic 234 | . . . . . . . . . . . . 234 Impact . | . . . . . . . . . . . . . Slashing . | . . . . . . . . . . . . . Piercing . | . . . . . . . . . . . . . Highest Corruption 1 | . . . . . . . . . . . 1 1 Average Corruption 1 | . . . . . . . . . . . 1 1 Corruption Purged . | . . . . . . . . . . . . . Effects 2 | . . . . . . . . . . . 1 1 Message Errors 1 | . . . . . . . . . . . . 1 Energy Discharges 1 | . . . . . . . . . . . 1 . Overload Shots . | . . . . . . . . . . . . . Overflow Damage 1483 | . . . 27 9 . . 66 809 289 63 203 17 Projectiles 1430 | . . . . . . . 66 809 289 63 203 . Explosions 53 | . . . 27 9 . . . . . . . 17 Melee . | . . . . . . . . . . . . . Knockbacks 20 | . . . . . . . 3 9 3 1 4 . Impact . | . . . . . . . . . . . . . Kinetic 18 | . . . . . . . 2 9 3 1 3 . Secondary 2 | . . . . . . . 1 . . . 1 . Self-Inflicted Damage 178 | . . . 30 29 . . . . . . . 119 Shots 11 | . . . 4 3 . . . . . . . 4 Rammed 1 | . . . . . . . . . . . 1 . Targets Rammed 2 | . . . . . . . . . . . 2 . Kicked . | . . . . . . . . . . . . . Crushed 1 | . . . . . . . . . . . 1 . Highest Temperature 978 | . . . 387 216 . 30 . 24 36 . . 978 Average Temperature 180 | . . . 125 86 . 17 . 12 20 . . 303 Received Heat Transfer 1273 | . . . 276 100 . . . 84 36 . . 777 Effects 27 | . . . 3 . . . . . . . . 24 Shutdowns 4 | . . . 1 . . . . . . . . 3 Energy Bleed 2 | . . . . . . . . . . . . 2 Interference 3 | . . . 1 . . . . . . . . 2 Matter Decay 1 | . . . . . . . . . . . . 1 Short Circuit 2 | . . . 1 . . . . . . . . 1 Damage (minor) 1 | . . . . . . . . . . . . 1 Damage (major) 12 | . . . . . . . . . . . . 12 Damage (core) 2 | . . . . . . . . . . . . 2 Siege Activations . | . . . . . . . . . . . . . Robots Corrupted . | . . . . . . . . . . . . . Combat Hostiles . | . . . . . . . . . . . . . Parts Fried 1 | . . . . . . . . . . . 1 . Impact Corruptions 4 | . . . . . . . 1 . . . 3 . Robots Melted . | . . . . . . . . . . . . . Combat Hostiles . | . . . . . . . . . . . . . Parts Melted 5 | . . . 1 2 . . . . . . . 2 Heat Transferred 2072 | . . . 1147 222 . 37 . . 37 . . 629 Parts Sabotaged . | . . . . . . . . . . . . . Parts Stolen . | . . . . . . . . . . . . . Parts Stripped . | . . . . . . . . . . . . . Power Chain Reactions . | . . . . . . . . . . . . . Missiles Intercepted . | . . . . . . . . . . . . . Alert | -11 -10 -10 -9 -9 -9 -8 -8 -8 -7 -7 -7 -7 ------- Run | Scr Mat Min Mat Min Exi Min Mat Gar Fac Was Fac Sto Peak Influence 1006 | . 45 12 443 148 . 71 93 1006 466 91 358 740 Initial 391 | . . 12 . 98 . . 19 45 391 30 48 117 Average 224 | . 10 6 228 62 . 22 31 673 266 67 151 350 Maximum Alert Level 3 | . . . 2 . . . . 3 2 . 1 3 Low Security (%) 64 | 100 100 100 32 100 . 100 100 11 58 100 58 20 Level 1 13 | . . . 62 . . . . 6 3 . 41 39 Level 2 13 | . . . 4 . . . . 36 37 . . 35 Level 3 8 | . . . . . . . . 44 . . . 4 Level 4 . | . . . . . . . . . . . . . Level 5 . | . . . . . . . . . . . . . High Security . | . . . . . . . . . . . . . Max Security . | . . . . . . . . . . . . . Squads Dispatched 12 | . . . 2 . . . . . 2 . 3 5 Investigation 4 | . . . . . . . . . 1 . 2 1 Extermination 2 | . . . . . . . . . 1 . 1 . Reinforcement 4 | . . . 2 . . . . . . . . 2 Assault 1 | . . . . . . . . . . . . 1 Garrison 1 | . . . . . . . . . . . . 1 Intercept . | . . . . . . . . . . . . . Construction Impeded . | . . . . . . . . . . . . . Haulers Reinforced 1 | . . . . . . . . . . . . 1 Stealth | -11 -10 -10 -9 -9 -9 -8 -8 -8 -7 -7 -7 -7 --------- Run | Scr Mat Min Mat Min Exi Min Mat Gar Fac Was Fac Sto Distress Signals 6 | . 1 . 2 . . . 1 . . . . 2 Communications Jammed . | . . . . . . . . . . . . . Distress Signals . | . . . . . . . . . . . . . Times Spotted 115 | . 2 1 26 11 . 3 4 26 8 5 6 23 Peak Tracking Total 8 | . 2 1 5 7 . 2 2 6 1 2 3 8 Tactical Retreats 8 | . 1 . . 1 . . . 6 . . . . Traps | -11 -10 -10 -9 -9 -9 -8 -8 -8 -7 -7 -7 -7 ------- Run | Scr Mat Min Mat Min Exi Min Mat Gar Fac Was Fac Sto Traps Triggered 16 | . . . 1 . . . . 10 3 . 1 1 Indirectly . | . . . . . . . . . . . . . Trap Hack Attempts . | . . . . . . . . . . . . . Triggered . | . . . . . . . . . . . . . Disarmed . | . . . . . . . . . . . . . Reprogrammed . | . . . . . . . . . . . . . Reused . | . . . . . . . . . . . . . Traps Extracted . | . . . . . . . . . . . . . Installed . | . . . . . . . . . . . . . Triggered . | . . . . . . . . . . . . . Machines | -11 -10 -10 -9 -9 -9 -8 -8 -8 -7 -7 -7 -7 ---------- Run | Scr Mat Min Mat Min Exi Min Mat Gar Fac Was Fac Sto Machines Disabled 12 | . . . . 1 . 3 . 4 . . . 4 Max in Single Turn 2 | . . . . 1 . 2 . 1 . . . 2 Garrison Access 1 | . . . . . . . . . . . . 1 Garrison Relay 3 | . . . . . . . . 3 . . . . Machines Sabotaged . | . . . . . . . . . . . . . Garrisons Compromised . | . . . . . . . . . . . . . Overloaded Fab Kills . | . . . . . . . . . . . . . Fab Network Shutdowns . | . . . . . . . . . . . . . Hacking | -11 -10 -10 -9 -9 -9 -8 -8 -8 -7 -7 -7 -7 --------- Run | Scr Mat Min Mat Min Exi Min Mat Gar Fac Was Fac Sto Machines Accessed 19 | . 3 1 2 . 1 . 2 . 4 . 4 2 Terminals 14 | . 2 1 2 . . . . . 3 . 4 2 Fabricators 1 | . . . . . . . . . 1 . . . Repair Stations . | . . . . . . . . . . . . . Recycling Units 1 | . 1 . . . . . . . . . . . Scanalyzers 1 | . . . . . . . 1 . . . . . Garrison Access 1 | . . . . . . . 1 . . . . . Total Hacks 51 | . 7 1 4 . 1 . 6 . 15 . 13 4 Successful 36 | . 5 1 4 . 1 . 3 . 10 . 8 4 Failed 15 | . 2 . . . . . 3 . 5 . 5 . Catastrophic . | . . . . . . . . . . . . . Database Lockouts . | . . . . . . . . . . . . . Manual 28 | . 6 . 2 . 1 . . . 5 . 11 3 Terminals 40 | . 6 1 4 . . . . . 12 . 13 4 Fabricators 3 | . . . . . . . . . 3 . . . Repair Stations . | . . . . . . . . . . . . . Recycling Units 1 | . 1 . . . . . . . . . . . Scanalyzers 5 | . . . . . . . 5 . . . . . Garrison Access 1 | . . . . . . . 1 . . . . . Terminal Hacks 15 | . 2 1 3 . 1 . . . 4 . 3 1 Part Schematic 3 | . . . . . . . . . 1 . 2 . Robot Analysis 1 | . . . . . . . . . 1 . . . Open Door 1 | . . . . . . . . . . . . 1 Branch Access Points 2 | . 1 . . . . . . . 1 . . . Terminal Index 4 | . 1 . 1 . . . . . 1 . 1 . Hauler Manifests 1 | . . . 1 . . . . . . . . . Registered Prototypes 1 | . . . 1 . . . . . . . . . Zone Layout 1 | . . 1 . . . . . . . . . . EX-Prototype ID Bank 1 | . . . . . 1 . . . . . . . Fabricator Hacks 2 | . . . . . . . . . 2 . . . Load Schematic 1 | . . . . . . . . . 1 . . . Build 1 | . . . . . . . . . 1 . . . Repair Station Hacks . | . . . . . . . . . . . . . Recycling Unit Hacks 1 | . 1 . . . . . . . . . . . Retrieve Matter 1 | . 1 . . . . . . . . . . . Scanalyzer 2 | . . . . . . . 2 . . . . . Insert Component 1 | . . . . . . . 1 . . . . . Analyze 1 | . . . . . . . 1 . . . . . Garrison Access Hacks 1 | . . . . . . . 1 . . . . . Unlock Access 1 | . . . . . . . 1 . . . . . Unauthorized Hacks 15 | . 2 . 1 . . . . . 4 . 5 3 Terminals 15 | . 2 . 1 . . . . . 4 . 5 3 Track 3 | . . . . . . . . . 1 . 1 1 Botnet 9 | . 2 . 1 . . . . . 2 . 3 1 Operators 3 | . . . . . . . . . 1 . 1 1 Fabricators . | . . . . . . . . . . . . . Repair Stations . | . . . . . . . . . . . . . Recycling Units . | . . . . . . . . . . . . . Scanalyzers . | . . . . . . . . . . . . . Garrison Access . | . . . . . . . . . . . . . Data Cores Recovered 2 | . . . . . . . . . 2 . . . Used 1 | . . . . . . . . . 1 . . . Hacking Detections 12 | . 3 . 1 . . . 1 . 3 . 3 1 Full Trace Events 4 | . . . . . . . . . 1 . 2 1 Feedback Events . | . . . . . . . . . . . . . Feedback Blocked . | . . . . . . . . . . . . . Robot Schematics Acquired . | . . . . . . . . . . . . . Robots Built . | . . . . . . . . . . . . . Matter . | . . . . . . . . . . . . . Time . | . . . . . . . . . . . . . Total Robot Build Rating . | . . . . . . . . . . . . . Part Schematics Acquired 4 | . . . . . . . 1 . 1 . 2 . Parts Built 1 | . . . . . . . . . 1 . . . Matter 190 | . . . . . . . . . 190 . . . Time 47 | . . . . . . . . . 47 . . . Total Part Build Rating 5 | . . . . . . . . . 5 . . . Parts Repaired . | . . . . . . . . . . . . . Time . | . . . . . . . . . . . . . Parts Recycled . | . . . . . . . . . . . . . Recycled Matter . | . . . . . . . . . . . . . Retrieved Matter . | . . . . . . . . . . . . . Retrieved Components . | . . . . . . . . . . . . . Parts Scanalyzed 1 | . . . . . . . 1 . . . . . Part Schematics Acquired 1 | . . . . . . . 1 . . . . . Parts Damaged . | . . . . . . . . . . . . . Bothacking | -11 -10 -10 -9 -9 -9 -8 -8 -8 -7 -7 -7 -7 ------------ Run | Scr Mat Min Mat Min Exi Min Mat Gar Fac Was Fac Sto Used RIF Installer 1 | . . . . . . . . 1 . . . . Robots Hacked 1 | . . . . . . . . . . . . 1 Non-combat 1 | . . . . . . . . . . . . 1 Combat . | . . . . . . . . . . . . . Robot Hacks Applied 1 | . . . . . . . . . . . . 1 parse_system 1 | . . . . . . . . . . . . 1 Relay Couplers Released 10 | . . . . . . . . 9 . . . 1 Machine Destruction 10 | . . . . . . . . 9 . . . 1 Robots Rewired . | . . . . . . . . . . . . . Allies Hacked 1 | . . . . . . . . . . . . 1 Hacks Repelled . | . . . . . . . . . . . . . Allies | -11 -10 -10 -9 -9 -9 -8 -8 -8 -7 -7 -7 -7 -------- Run | Scr Mat Min Mat Min Exi Min Mat Gar Fac Was Fac Sto Total Allies 22 | . . . . 4 . . . . . 18 . . Largest Group 18 | . . . . 3 3 3 1 1 . 18 11 6 Highest-Rated Group 456 | . . . . 40 40 40 16 16 . 456 344 180 Highest-Rated Ally 35 | . . . . 31 16 16 16 16 . 35 35 32 Total Orders . | . . . . . . . . . . . . . Ally Attacks 237 | . . . . 7 . 13 5 6 . 115 41 50 Total Damage 5706 | . . . . 128 . 134 82 80 . 3621 1007 654 Kills 31 | . . . . 2 . 2 . . . 11 11 5 Allies Corrupted 1 | . . . . . . . . . . . . 1 Allies Melted . | . . . . . . . . . . . . . Intel | -11 -10 -10 -9 -9 -9 -8 -8 -8 -7 -7 -7 -7 ------- Run | Scr Mat Min Mat Min Exi Min Mat Gar Fac Was Fac Sto Robot Analysis Total 1 | . . . . . . . . . 1 . . . Derelict Logs Recovered 3 | . . 2 . 1 . . . . . . . . Drone Launches . | . . . . . . . . . . . . . Drone Recoveries . | . . . . . . . . . . . . . Exploration | -11 -10 -10 -9 -9 -9 -8 -8 -8 -7 -7 -7 -7 ------------- Run | Scr Mat Min Mat Min Exi Min Mat Gar Fac Was Fac Sto Turns Passed 8006 | 58 205 828 661 1044 379 705 243 1401 963 393 797 329 Spaces Moved 4648 | 30 168 660 333 475 244 389 168 773 589 221 470 128 Core 93 | 16 . . . 76 . . . . . . . 1 Treads 948 | . . . . . . . . . 130 221 470 127 Legs 3607 | 14 168 660 333 399 244 389 168 773 459 . . . Wheels . | . . . . . . . . . . . . . Hover . | . . . . . . . . . . . . . Flight . | . . . . . . . . . . . . . Fastest Speed 50 | 50 120 120 120 150 150 180 123 123 125 165 150 150 Average Speed 159 | 157 120 120 154 201 154 180 138 171 158 173 164 154 Slowest Speed 650 | 250 120 120 180 400 180 180 183 183 245 185 170 650 Overloaded Moves . | . . . . . . . . . . . . . Propulsion Burnouts . | . . . . . . . . . . . . . Robots Hopped . | . . . . . . . . . . . . . Cave-ins Triggered . | . . . . . . . . . . . . . Exploration Rate (%) 53 | 4 47 99 54 91 62 91 18 65 20 94 18 34 Regions Visited 12 Branch Regions 5 Pre-discovered Areas 1 | . . . . 1 . . . . . . . . Known Exits Taken 9 | 1 1 1 1 1 1 1 1 . . . 1 . Unknown Exits Taken . | . . . . . . . . . . . . . Scrap Searched 3 | . . 2 . 1 . . . . . . . . Spaces Dug 10 | . . . . 10 . . . . . . . . Terrain Destroyed 413 | . . . 142 64 . 10 1 12 2 3 7 172 Melee . | . . . . . . . . . . . . . Projectile 33 | . . . 4 . . . 1 12 2 3 7 4 AOE 380 | . . . 138 64 . 10 . . . . . 168 Terrain Rammed . | . . . . . . . . . . . . . Walls Destroyed . | . . . . . . . . . . . . . Machines Disabled . | . . . . . . . . . . . . . Actions | -11 -10 -10 -9 -9 -9 -8 -8 -8 -7 -7 -7 -7 --------- Run | Scr Mat Min Mat Min Exi Min Mat Gar Fac Was Fac Sto Total 5059 | 38 169 696 408 535 248 393 177 846 619 232 492 206 Wait 179 | . . 34 17 43 . 3 . 9 9 5 15 44 Move 4638 | 29 167 659 332 474 243 388 168 772 589 220 469 128 Hop . | . . . . . . . . . . . . . Pick Up 24 | 4 . 3 5 . 2 . 2 3 5 . . . Fast Attach 23 | 5 . . 2 1 1 . 3 1 5 2 3 . Attach 18 | . 1 . 3 2 . . 1 5 1 . . 5 Detach 8 | . . . . 1 . . 2 5 . . . . Swap 11 | . . . 2 2 . . 1 2 2 1 . 1 Drop 19 | . . . . . 2 1 . 3 5 4 3 1 Fire 92 | . 1 . 47 12 . 1 . 3 3 . . 25 Melee 2 | . . . . . . . . . . . . 2 Ram . | . . . . . . . . . . . . . Kick . | . . . . . . . . . . . . . Crush 2 | . . . . . . . . . . . 2 . Escape Stasis 43 | . . . . . . . . 43 . . . . Rewire . | . . . . . . . . . . . . . Trap . | . . . . . . . . . . . . . Miscellaneous . | . . . . . . . . . . . . . Route ------- -11/Scrapyard -10/Materials (discovered 3 exits: *Mat / *Min x2) -10/Mines (discovered 2 exits: *Mat x2) -9/Materials (discovered 3 exits: *Mat / *Min x2) -9/Mines (discovered 3 exits: *Mat x2 / *Exi) -9/Exiles (discovered 2 exits: *Min x2) -8/Mines (discovered 2 exits: *Mat x2) -8/Materials -8/Garrison (discovered 3 exits: *Fac x3) -7/Factory (discovered 3 exits: Sto / Low x2) -7/Waste -7/Factory -7/Storage History --------- Turn | Location | Event 46 | -11/Scrapyard | Identified exit to Materials 46 | -11/Scrapyard | Discovered exit to Materials (range 12) 59 | -11/Scrapyard | Entered Materials 59 | -10/Materials | Evolved 1 slot: Utility x1 141 | -10/Materials | Identified exit to Mines 164 | -10/Materials | Identified exit to Materials 164 | -10/Materials | Discovered exit to Materials (range 15) 264 | -10/Materials | Entered Mines 286 | -10/Mines | Discovered exit to Materials (range 10) 306 | -10/Mines | Joined a pair of Derelicts in attacking an 0b10 outpost 310 | -10/Mines | Build established: Hacker-Mutant 316 | -10/Mines | Learned Materials security intel 423 | -10/Mines | Discovered exit to Materials (range 12) 439 | -10/Mines | Received a Rocket Launcher from a helpful Derelict 545 | -10/Mines | Learned 4 Materials zone layouts 695 | -10/Mines | Found a damaged Exp. Sensor Array with a note attached 697 | -10/Mines | Found Prototype Device 1092 | -10/Mines | Entered Materials 1092 | -9/Materials | Evolved 2 slots: Utility x2 1092 | -9/Materials | Identified Exp. Sensor Array 1093 | -9/Materials | Identified exit to Mines 1411 | -9/Materials | Identified exit to Materials 1411 | -9/Materials | Discovered exit to Materials (range 15) 1463 | -9/Materials | Discovered exit to Mines (range 15) 1753 | -9/Materials | Entered Mines 1827 | -9/Mines | Received a Mining Laser from a helpful Derelict 2035 | -9/Mines | Discovered exit to Materials (range 9) 2061 | -9/Mines | Discovered exit to Materials (range 8) 2194 | -9/Mines | Assembled infested the area 2263 | -9/Mines | Destroyed 7 combat bots 2520 | -9/Mines | Assisted by bots powering up and referring to "LRC-V3" 2778 | -9/Mines | Deemed a non-threat by the Exiles lab entrance 2780 | -9/Mines | Identified exit to Exiles 2780 | -9/Mines | Discovered exit to Exiles (range 5) 2797 | -9/Mines | Entered Exiles 2797 | -9/Exiles | Accompanied by 3 allies 2817 | -9/Exiles | Identified exit to Mines 2817 | -9/Exiles | Discovered exit to Mines (range 15) 2835 | -9/Exiles | Met 8R-AWN 2859 | -9/Exiles | Met EX-HEX 2901 | -9/Exiles | Met EX-BIN 2919 | -9/Exiles | Aligned with FarCom system 2920 | -9/Exiles | Given EX-Vault access code 2961 | -9/Exiles | Opened EX-Vault 2972 | -9/Exiles | Found AWS/Autocannon 3008 | -9/Exiles | Warned to stay clear of 0b10 Research branches 3054 | -9/Exiles | Met EX-DEC 3158 | -9/Exiles | Discovered exit to Mines (range 11) 3176 | -9/Exiles | Left Exiles lab with AWS/Autocannon 3176 | -9/Exiles | Entered Mines 3176 | -8/Mines | Accompanied by 3 allies 3200 | -8/Mines | Discovered exit to Materials (range 13) 3451 | -8/Mines | Discovered exit to Materials (range 15) 3881 | -8/Mines | Entered Materials 3881 | -8/Materials | Accompanied by 1 ally 3881 | -8/Materials | Evolved 2 slots: Propulsion x1, Weapon x1 4124 | -8/Materials | Identified exit to Garrison 4124 | -8/Materials | Entered Garrison 4124 | -8/Garrison | Accompanied by 1 ally 4194 | -8/Garrison | Triggered checkpoint 4272 | -8/Garrison | Triggered checkpoint 4318 | -8/Garrison | Triggered checkpoint 4374 | -8/Garrison | Build established: Hacker-Skirmisher 4432 | -8/Garrison | Triggered checkpoint 4444 | -8/Garrison | Destroyed 13 combat bots 4446 | -8/Garrison | Identified exit to Factory 4446 | -8/Garrison | Discovered exit to Factory (range 14) 4638 | -8/Garrison | Discovered exit to Factory (range 9) 4794 | -8/Garrison | Discovered exit to Factory (range 10) 4825 | -8/Garrison | Installed Relay Interface Framework 4892 | -8/Garrison | Triggered checkpoint 4951 | -8/Garrison | Garrison Relay disabled 5052 | -8/Garrison | Triggered checkpoint 5109 | -8/Garrison | Garrison Relay disabled 5210 | -8/Garrison | Triggered checkpoint 5299 | -8/Garrison | Garrison Relay disabled 5525 | -8/Garrison | Entered Factory 5525 | -7/Factory | Evolved 2 slots: Propulsion x1, Utility x1 5616 | -7/Factory | Build established: Hacker-Mutant 6025 | -7/Factory | Identified exit to Storage 6025 | -7/Factory | Identified exit to Lower Caves 6171 | -7/Factory | Build established: Hacker-Tank 6450 | -7/Factory | Fabricated Drone Bay? 6488 | -7/Factory | Sucked down chute 6488 | -7/Factory | Entered Waste 6500 | -7/Waste | Spotted C-40 Crusher 6525 | -7/Waste | Warlord forces began an assault 6529 | -7/Waste | Allies destroyed C-40 Crusher 6633 | -7/Waste | Spotted C-40 Crusher 6636 | -7/Waste | Allies destroyed C-40 Crusher 6658 | -7/Waste | Spotted C-40 Crusher 6663 | -7/Waste | Spotted C-40 Crusher 6666 | -7/Waste | Allies destroyed C-40 Crusher 6672 | -7/Waste | Allies destroyed C-40 Crusher 6689 | -7/Waste | Spotted C-40 Crusher 6692 | -7/Waste | Spotted C-40 Crusher 6694 | -7/Waste | Allies destroyed C-40 Crusher 6699 | -7/Waste | Allies destroyed C-40 Crusher 6833 | -7/Waste | Identified exit to Factory 6833 | -7/Waste | Discovered exit to Factory (range 12) 6881 | -7/Waste | Entered Factory 6881 | -7/Factory | Accompanied by 11 allies 7662 | -7/Factory | Discovered exit to Storage (range 5) 7678 | -7/Factory | Entered Storage 7678 | -7/Storage | Accompanied by 6 allies 7784 | -7/Storage | Build established: Hacker-Mutant 8001 | -7/Storage | Core integrity fell below 50% 8004 | -7/Storage | Core integrity fell below 20% 8007 | -7/Storage | Destroyed by Y-54 Guardian with Flak Gun Last Messages --------------- 07999_ K-01 Serf collects debris. 08000_ Overheating: Imp. Power Shielding damaged (-36). 08000_ The unstable cave ceiling collapses. 08000_ Hvy. Treads destroyed. 08000_ Lgt. Nuclear Core destroyed. 08000_ U-05 Engineer lays Concrete. 08001_ Overheating: Core damaged (-119). 08001_ The unstable cave ceiling collapses. 08001_ U-05 Engineer lays Concrete. 08002_ Overheating: Lrg. Storage Unit damaged (-45). 08002_ Overheating: Lrg. Storage Unit damaged (-92). 08002_ Overheating: Power Shielding damaged (-15). 08002_ Overheating: Imp. Power Shielding damaged (-14). 08003_ The unstable cave ceiling collapses. 08003_ U-05 Engineer lays Concrete. 08003_ Kinecellerator destroyed. 08004_ K-01 Serf collects debris. 08004_ U-05 Engineer lays Concrete. 08005_ Overheating: Lrg. Storage Unit damaged (-12). 08005_ U-05 Engineer builds a Wall. Map ----- +----------------------------------------------------+ | ??????# """??????# """ """ #??????????? | | ??????# """ ""???# """ """ #??????????? | | ??????# """ "????# """ """ #??????????? | | ###???# """ ?????# #??????????? | | ###?#% ???????# #??????????? | | """"####%###+######### # ######### #????? | | %*=* #????? | | !=^% % % == #####?#????? | | =% % % !!% ## # ###??? | | ############+"##########= ##/ ##?? | | ??????????! #??# %#% # #? | | ???????? #??# # %# # ?? | | Y??????# #### a = =% # ??? | | ???????# # ## # ??? | | ???????+ ! # ## #? | | ???????#! [ u """ # #? | | ???????# / """ #???? | | ???????# | #""" ##???? | | ???????####### k # #????? | | ?????????????## # =%! ##########????? | | ?????????????# * # % # ???????? | | ?????????????# """ """?????? | | ?????????????# "T" """?????? | | ?????????????# """ #???? | | ????????????# o Y #???? | | ????????????# @ ]]] #???? | | ????????????# # ]]] #???? | | ????????????# ]] #???? | | ????????????## #" "######???? | | ?????????????# # Y #"T"#????????? | | ???????????? %== #?""#????????? | | ???????????# == Y Y #???#????????? | | ???????????# == % #Y ????????????? | | ???????????# " " Y ???????????? | | ???????????? " "% ^ ???????????? | | ???????????? =% " = # ??????????? | | ?????????????? * Y# ?????????? | | ????????????????#? ## + ??????????? | | ???????????????????? ### # ??????????? | | ????????????????????????## ?? ???????????? | | ?????????????????????????? ??????????????? | | ?????????????????????????????????????????? | | ?????????????????????????????????????????? | | ?????????????????????????????????????????? | | ?????????????????????????????????????????? | | ?????????????????????????????????????????? | | ?????????????????????????????????????????? | | ?????????????????????????????????????????? | | ?????????????????????????????????????????? | | ?????????????????????????????????????????? | +----------------------------------------------------+ Best States ------------- Heat Dissipation 34 Energy Generation 14 Energy Capacity 250 Matter Stores 300 Matter Capacity 300 Sight Range 16 Robot Scan Range 30 Terrain Scan Density 10 Armor Coverage 225 Resistance: KI 65 Resistance: TH 35 Resistance: EX 35 Resistance: EM 35 Resistance: I 35 Resistance: S 35 Resistance: P 35 Power Shielding 66 Evasion (%) 40 Recoil Reduction 4 Kinecelleration 30 Offensive Hacking 20 Item Schematics ----------------- Kinecellerator | -8/Materials | Scanalyzed Drone Bay | -7/Factory | Hacked Arc Projector | -7/Factory | Hacked Lgt. Nuclear Core | -7/Factory | Hacked Robot Schematics ------------------ None Fabricated ------------ Drone Bay | x1 | -7/Factory Alien Tech Used ----------------- None Achievements -------------- None Challenges ------------ None Game ------ Seed GaussMetafieldFacilitator Manual? 0 Play Time 00:48:59 Cumulative 87.0 hours Start 2020.11.13 @ 12:45:09 End 2020.11.13 @ 13:32:40 Sessions 1 Manual Loads 0 Difficulty Explorer Special Mode Halloween2020/ForbiddenLore Game No. 146 Rogue 0 Adventurer 0 Explorer 146 Win Type - Total 1 Types 1/0/0/0/0/0/0/0/0 Lore% 56 Gallery% 65 Achievement% 50 Wizard Run 0 Options --------- ASCII 0 Keyboard 0 Movement Numpad Keybinds 0 Fullscreen 1 Font 36/Smallcaps Map View 76x50 Tactical HUD 1 Map Filters NONE Filters NONE Steam 1 RUN: 784d9916-0d3a-4b58-ad87-da19b30e14b7